fUST/lending_fUST_20250926
["ID","MTS","AMOUNT","RATE_DAILY","PERIOD"]
[387792139,1758873055288,-480.0,0.00038356,30]
[387792140,1758873055297,-480.0,0.00038356,30]
[387792141,1758873055307,-486.16995129,0.00038356,30]
[387792142,1758873055316,-480.0,0.00038356,30]
[387792143,1758873055325,-480.0,0.00038356,30]
[387792144,1758873055334,-480.0,0.00038356,30]
[387792145,1758873055344,-480.0,0.00038356,30]
[387792146,1758873055353,-1219.0,0.00038356,30]
[387792147,1758873055362,-815.37,0.00038356,30]
[387792148,1758873055371,-480.0,0.00038356,30]
[387792149,1758873055380,-480.0,0.00038356,30]
[387792150,1758873055389,-481.99108499,0.00038356,30]
[387792151,1758873055398,-480.0,0.00038356,30]
[387792152,1758873055407,-405.65358611,0.00038356,30]
[387792153,1758873055417,-1500.0,0.00038356,2]
[387792154,1758873055426,-502.55722864,0.00038373,5]
[387792155,1758873055435,-506.75861531,0.00038373,2]
[387792156,1758873055444,-504.78324607,0.00038373,5]
[387792157,1758873055453,-501.29297048,0.00038373,5]
[387792158,1758873055462,-500.0,0.00038373,5]
[387792159,1758873055471,-150.0,0.00038373,5]
[387792160,1758873055480,-500.0,0.00038373,5]
[387792161,1758873055489,-307.06787741,0.00038373,5]
[387792162,1758873055498,-500.0,0.00038373,5]
[387792163,1758873055507,-500.0,0.00038373,5]
[387792164,1758873055516,-500.0,0.00038373,5]
[387792165,1758873055526,-500.0,0.00038373,5]
[387792166,1758873055536,-369.47867578,0.00038527,2]
[387792167,1758873055546,-500.0,0.0003853,2]
[387792168,1758873055556,-500.0,0.0003853,2]
[387792169,1758873055566,-74444.7725401,0.0003862,3]
[387792170,1758873055575,-4503.93994155,0.0003862,3]
[387792171,1758873055584,-480.0,0.0003863,30]
[387792172,1758873055593,-480.84854334,0.0003863,30]
[387792173,1758873055602,-480.0,0.0003863,30]
[387792174,1758873055612,-480.0,0.0003863,30]
[387792175,1758873055621,-481.26422079,0.0003863,30]
[387792176,1758873055631,-480.0,0.0003863,30]
[387792177,1758873055640,-612.79167497,0.0003863,30]
[387792178,1758873055648,-480.0,0.0003863,30]
[387792179,1758873055657,-480.0,0.0003863,30]
[387792180,1758873055667,-480.0,0.0003863,30]
[387792181,1758873055676,-480.0,0.0003863,30]
[387792182,1758873055686,-480.0,0.0003863,14]
[387792183,1758873055695,-480.0,0.0003863,30]
[387792184,1758873055704,-480.0,0.0003863,30]
[387792185,1758873055714,-480.0,0.0003863,7]
[387792186,1758873055723,-480.0,0.0003863,30]
[387792187,1758873055732,-485.33105194,0.0003863,30]
[387792188,1758873055741,-575.43624926,0.0003863,30]
[387792189,1758873055750,-362.93446919,0.0003863,30]
[387792190,1758873055760,-480.0,0.0003863,30]
[387792191,1758873055770,-480.0,0.0003863,30]
[387792192,1758873055779,-480.0,0.0003863,30]
[387792193,1758873055789,-480.0,0.0003863,30]
[387792194,1758873055800,-500.0,0.0003863,30]
[387792195,1758873055810,-480.0,0.0003863,30]
[387792196,1758873055819,-152.853133,0.0003863,120]
[387792197,1758873055829,-484.65131404,0.0003863,30]
[387792198,1758873055839,-480.0,0.0003863,30]
[387792199,1758873055848,-481.56733072,0.0003863,7]
[387792200,1758873055857,-480.0,0.0003863,30]
[387792201,1758873055866,-480.0,0.0003863,30]
[387792202,1758873055876,-480.0,0.0003863,30]
[387792203,1758873055885,-480.0,0.0003863,30]
[387792204,1758873055895,-480.0,0.0003863,30]
[387792205,1758873055904,-481.41066611,0.0003863,7]
[387792206,1758873055913,-480.0,0.0003863,30]
[387792207,1758873055922,-480.0,0.0003863,30]
[387792208,1758873055932,-480.0,0.0003863,30]
[387792209,1758873055941,-480.0,0.0003863,30]
[387792210,1758873055950,-480.0,0.0003863,30]
[387792211,1758873055959,-480.0,0.0003863,30]
[387792212,1758873055969,-480.0,0.0003863,30]
[387792213,1758873055978,-480.0,0.0003863,30]
[387792214,1758873055988,-480.0,0.0003863,30]
[387792215,1758873055997,-480.0,0.0003863,30]
[387792216,1758873056007,-480.42624066,0.0003863,12]
[387792217,1758873056016,-480.0,0.0003863,30]
[387792218,1758873056025,-480.0,0.0003863,30]
[387792219,1758873056035,-480.0,0.0003863,30]
[387792220,1758873056044,-482.93999518,0.0003863,30]
[387792221,1758873056054,-503.22450954,0.0003863,14]
[387792222,1758873056064,-480.0,0.0003863,30]
[387792223,1758873056073,-480.0,0.0003863,30]
[387792224,1758873056083,-480.0,0.0003863,30]
[387792225,1758873056093,-1981.11,0.0003863,30]
[387792226,1758873056102,-480.0,0.0003863,30]
[387792227,1758873056111,-480.0,0.0003863,30]
[387792228,1758873056120,-480.0,0.0003863,30]
[387792229,1758873056129,-480.0,0.0003863,30]
[387792230,1758873056139,-480.0,0.0003863,30]
[387792231,1758873056148,-480.0,0.0003863,30]
[387792232,1758873056157,-480.0,0.0003863,30]
[387792233,1758873056167,-480.0,0.0003863,30]
[387792234,1758873056176,-480.0,0.0003863,30]
[387792235,1758873056189,-480.0,0.0003863,30]
[387792236,1758873056198,-480.0,0.0003863,30]
[387792237,1758873056207,-480.0,0.0003863,30]
[387792238,1758873056216,-480.0,0.0003863,30]
[387792239,1758873056225,-480.0,0.0003863,30]
[387792240,1758873056235,-480.0,0.0003863,30]
[387792241,1758873056244,-480.0,0.0003863,30]
[387792242,1758873056253,-336.23367942,0.0003863,30]
[387792243,1758873056262,-480.0,0.0003863,30]
[387792244,1758873056270,-417.01339898,0.0003863,30]
[387792245,1758873056280,-480.0,0.0003863,30]
[387792246,1758873056288,-480.0,0.0003863,30]
[387792247,1758873056297,-480.0,0.0003863,30]
[387792248,1758873056307,-480.0,0.0003863,30]
[387792249,1758873056316,-480.0,0.0003863,30]
[387792250,1758873056324,-480.0,0.0003863,30]
[387792251,1758873056333,-480.0,0.0003863,30]
[387792252,1758873056342,-480.0,0.0003863,30]
[387792253,1758873056351,-480.0,0.0003863,30]
[387792254,1758873056360,-480.0,0.0003863,30]
[387792255,1758873056369,-482.54852348,0.0003863,30]
[387792256,1758873056378,-480.0,0.0003863,30]
[387792257,1758873056387,-236.70378819,0.0003863,30]
[387792258,1758873056396,-480.0,0.0003863,30]
[387792259,1758873056405,-584.55823127,0.0003863,30]
[387792260,1758873056414,-480.0,0.0003863,30]
[387792261,1758873056423,-485.2415855,0.0003863,30]
[387792262,1758873056432,-480.0,0.0003863,30]
[387792263,1758873056441,-480.0,0.0003863,30]
[387792264,1758873056451,-480.0,0.0003863,30]
[387792265,1758873056461,-480.0,0.0003863,30]
[387792266,1758873056471,-480.0,0.0003863,30]
[387792267,1758873056480,-480.0,0.0003863,30]
[387792268,1758873056490,-2712.31,0.0003863,30]
[387792269,1758873056499,-486.36495646,0.0003863,30]
[387792270,1758873056508,-480.0,0.0003863,30]
[387792271,1758873056517,-480.0,0.0003863,30]
[387792272,1758873056527,-480.0,0.0003863,30]
[387792273,1758873056537,-480.0,0.0003863,30]
[387792274,1758873056546,-480.0,0.0003863,30]
[387792275,1758873056555,-480.0,0.0003863,30]
[387792276,1758873056564,-480.0,0.0003863,30]
[387792277,1758873056574,-480.0,0.0003863,30]
[387792278,1758873056583,-480.0,0.0003863,30]
[387792279,1758873056592,-480.0,0.0003863,30]
[387792280,1758873056601,-485.31297155,0.0003863,30]
[387792281,1758873056611,-480.0,0.0003863,30]
[387792282,1758873056620,-480.0,0.0003863,30]
[387792283,1758873056629,-480.0,0.0003863,30]
[387792284,1758873056638,-480.0,0.0003863,30]
[387792285,1758873056647,-480.0,0.0003863,30]
[387792286,1758873056658,-480.0,0.0003863,30]
[387792287,1758873056667,-529.58901423,0.0003863,30]
[387792288,1758873056676,-541.88,0.0003863,30]
[387792289,1758873056685,-482.38821703,0.0003863,30]
[387792290,1758873056694,-480.0,0.0003863,30]
[387792291,1758873056704,-256.50838644,0.0003863,30]
[387792292,1758873056713,-480.0,0.0003863,30]
[387792293,1758873056722,-482.21097244,0.0003863,30]
[387792294,1758873056731,-480.0,0.0003863,30]
[387792295,1758873056741,-480.0,0.0003863,30]
[387792296,1758873056750,-480.0,0.0003863,30]
[387792297,1758873056760,-480.0,0.0003863,30]
[387792298,1758873056769,-480.0,0.0003863,30]
[387792299,1758873056778,-480.0,0.0003863,30]
[387792300,1758873056788,-480.0,0.0003863,30]
[387792301,1758873056797,-480.0,0.0003863,30]
[387792302,1758873056806,-632.27,0.0003863,30]
[387792303,1758873056815,-480.0,0.0003863,30]
[387792304,1758873056824,-480.0,0.0003863,30]
[387792305,1758873056834,-480.0,0.0003863,30]
[387792306,1758873056843,-534.48223388,0.0003863,30]
[387792307,1758873056853,-647.38,0.0003863,3]
[387792308,1758873056866,-480.0,0.0003863,30]
[387792309,1758873056876,-480.0,0.0003863,30]
[387792310,1758873056886,-480.0,0.0003863,30]
[387792311,1758873056895,-480.0,0.0003863,30]
[387792312,1758873056905,-480.0,0.0003863,30]
[387792313,1758873056915,-480.0,0.0003863,30]
[387792314,1758873056925,-176.49884126,0.0003863,30]
[387792315,1758873056934,-480.0,0.0003863,30]
[387792316,1758873056944,-480.0,0.0003863,30]
[387792317,1758873056953,-480.0,0.0003863,30]
[387792318,1758873056962,-480.0,0.0003863,30]
[387792319,1758873056972,-202.80129245,0.0003863,30]
[387792320,1758873056982,-480.0,0.0003863,30]
[387792321,1758873056991,-483.84566298,0.0003863,30]
[387792322,1758873057001,-480.0,0.0003863,30]
[387792323,1758873057010,-480.0,0.0003863,30]
[387792324,1758873057019,-553.83,0.0003863,30]
[387792325,1758873057028,-16.53251705,0.0003863,30]
[387792326,1758873143836,2000.0,0.000199,30]
[387792327,1758873144108,2000.0,0.000199,30]
[387792328,1758873144384,2000.0,0.000199,30]
[387792329,1758873144682,2000.0,0.000199,30]
[387792330,1758873145076,2000.0,0.000199,30]
[387792331,1758873145274,0.01,0.000199,30]
[387792332,1758873145298,1999.99,0.000199,30]
[387792333,1758873146323,2000.0,0.000199,30]
[387792334,1758873146593,2000.0,0.000199,30]
[387792335,1758873147296,1095.647,0.000199,30]
[387792336,1758873176352,2904.373,0.00025205,2]
[387792337,1758873176375,2095.627,0.00025205,2]
[387792338,1758873199924,5000.0,0.00025205,2]
[387792339,1758873216169,3585.57953854,0.00025205,2]
[387792340,1758873248486,-5000.0,0.00024953,8]
[387792341,1758873278485,-3660.63465756,0.00024953,8]
[387792342,1758873301580,5000.0,0.00025205,2]
[387792343,1758873318739,-230.45,0.000197,2]
[387792344,1758873359959,10000.0,0.00025205,2]
[387792345,1758873385264,5000.0,0.00025205,2]
[387792346,1758873397888,10000.0,0.0001908,2]
[387792347,1758873398716,-3600.86756259,0.00024953,8]
[387792348,1758873408983,2798.27487482,0.00024953,2]
[387792349,1758873409006,787.34466372,0.00024953,2]
[387792350,1758873468803,-5000.0,0.00024703,8]
[387792351,1758873483879,-5000.0,0.00024953,2]
[387792352,1758873508872,-5000.0,0.00024703,8]
[387792353,1758873515264,0.01,0.00024703,2]
[387792354,1758873515289,4999.99,0.00024703,2]
[387792355,1758873609097,-5000.0,0.00024456,8]
[387792356,1758873629042,-5000.0,0.00024456,2]
[387792357,1758873658480,-5000.0,0.00024456,2]
[387792358,1758873675631,0.01,0.00024456,2]
[387792359,1758873675655,3585.58953854,0.00024456,2]
[387792360,1758873684605,5000.0,0.00024456,2]
[387792361,1758873700275,1414.42046146,0.00024456,2]
[387792362,1758873700303,3585.57953854,0.00024456,2]
[387792363,1758873708422,5000.0,0.00024456,2]
[387792364,1758873716987,1414.43046146,0.00024456,2]
[387792365,1758873717011,3585.56953854,0.00024456,2]
[387792366,1758873741676,5000.0,0.00024456,2]
[387792367,1758873765994,1414.44046146,0.00024456,2]
[387792368,1758873766016,3585.55953854,0.00024456,2]
[387792369,1758873788021,5000.0,0.00024456,2]
[387792370,1758873926117,1414.45046146,0.00024456,2]
[387792371,1758873926139,3585.54953854,0.00024456,2]
[387792372,1758873935286,5000.0,0.00024456,2]
[387792373,1758873960907,1414.46046146,0.00024456,2]
[387792374,1758873960929,3585.53953854,0.00024456,2]
[387792395,1758874149670,5000.0,0.00024,8]
[387792396,1758874171677,5000.0,0.00024,8]
[387792397,1758874180034,5000.0,0.00024,8]
[387792403,1758874203536,5000.0,0.00024,8]
[387792421,1758874232985,-568.88,0.00024454,8]
[387792497,1758874238740,-4172.92624095,0.00024454,8]
[387792498,1758874238754,-258.19375905,0.00024454,8]
[387792499,1758874238765,-191.627821,0.00025,2]
[387792500,1758874238775,-300.0,0.00025203,2]
[387792501,1758874238785,-500.0,0.00025203,2]
[387792502,1758874238794,-500.0,0.00025203,2]
[387792503,1758874238804,-500.0,0.00025203,2]
[387792504,1758874238814,-500.0,0.00025203,2]
[387792505,1758874238823,-500.0,0.00025203,2]
[387792506,1758874238833,-500.0,0.00025203,2]
[387792507,1758874238843,-500.0,0.00025203,2]
[387792508,1758874238852,-500.0,0.00025203,2]
[387792509,1758874238862,-500.0,0.00025203,2]
[387792510,1758874238872,-500.0,0.00025203,2]
[387792511,1758874238881,-500.0,0.00025203,2]
[387792512,1758874238891,-500.0,0.00025203,2]
[387792513,1758874238900,-500.0,0.00025203,2]
[387792514,1758874238910,-500.0,0.00025203,2]
[387792515,1758874238919,-500.0,0.00025203,2]
[387792516,1758874238929,-500.0,0.00025203,2]
[387792517,1758874238938,-500.0,0.00025203,2]
[387792518,1758874238947,-500.0,0.00025203,2]
[387792519,1758874238957,-500.0,0.00025203,2]
[387792520,1758874238966,-500.0,0.00025203,2]
[387792521,1758874238976,-500.0,0.00025203,2]
[387792522,1758874238985,-500.0,0.00025203,2]
[387792523,1758874238995,-500.0,0.00025203,2]
[387792524,1758874239006,-500.0,0.00025203,2]
[387792525,1758874239015,-500.0,0.00025203,2]
[387792526,1758874239025,-500.0,0.00025203,2]
[387792527,1758874239035,-500.0,0.00025203,2]
[387792528,1758874239046,-500.0,0.00025203,2]
[387792529,1758874239056,-500.0,0.00025203,2]
[387792530,1758874239066,-500.0,0.00025203,2]
[387792531,1758874239075,-500.0,0.00025203,2]
[387792532,1758874239085,-600.0,0.00025203,2]
[387792533,1758874239095,-500.0,0.00025203,2]
[387792534,1758874239104,-500.0,0.00025203,2]
[387792535,1758874239114,-500.0,0.00025203,2]
[387792536,1758874239124,-500.0,0.00025203,2]
[387792537,1758874239133,-500.0,0.00025203,2]
[387792538,1758874239142,-1000.0,0.00025441,2]
[387792539,1758874239152,-233.71402077,0.00025751,2]
[387792540,1758874239162,-500.0,0.0002614,2]
[387792541,1758874239172,-500.0,0.0002614,2]
[387792542,1758874239182,-500.0,0.0002614,2]
[387792543,1758874239191,-509.54682312,0.00026688,2]
[387792544,1758874239201,-2923.69834348,0.00027532,2]
[387792545,1758874239211,-500.0,0.00028133,5]
[387792546,1758874239221,-199.0,0.00028219,14]
[387792547,1758874239231,-297.69433756,0.00028904,15]
[387792548,1758874239240,-221.6872055,0.0002934,2]
[387792550,1758874239250,-533.92694344,0.0002934,2]
[387792552,1758874239261,-6375.96985205,0.0002941,2]
[387792554,1758874239270,-500.0,0.00029419,2]
[387792556,1758874239280,-500.0,0.00029419,2]
[387792558,1758874239289,-500.0,0.00029419,2]
[387792560,1758874239298,-470.50388489,0.00029419,2]
[387792561,1758874239308,-1201.15,0.0002942,3]
[387792564,1758874239318,-600.57,0.0002942,3]
[387792565,1758874239329,-300.29,0.0002942,3]
[387792567,1758874239339,-150.14,0.0002942,3]
[387792569,1758874239349,-450.45,0.0002942,3]
[387792571,1758874239358,-31879.8492602,0.0002942,2]
[387792573,1758874239367,-89263.5779287,0.0002943,2]
[387792574,1758874239376,-338586.0,0.0002944,2]
[387792575,1758874239385,-669241.0,0.0002944,2]
[387792576,1758874239395,-187.021686,0.0002944,7]
[387792577,1758874239404,-161.715788,0.0002944,7]
[387792578,1758874239413,-151.0,0.0002944,7]
[387792579,1758874239423,-195.86649,0.0002944,7]
[387792580,1758874239432,-151.0,0.0002944,7]
[387792581,1758874239441,-151.0,0.0002944,7]
[387792583,1758874239451,-207.11798,0.0002944,7]
[387792585,1758874239461,-153.054955,0.0002944,7]
[387792587,1758874239471,-151.734475,0.0002944,7]
[387792589,1758874239481,-151.0,0.0002944,7]
[387792590,1758874239490,-151.0,0.0002944,7]
[387792591,1758874239499,-214.21584045,0.00029473,5]
[387792592,1758874239510,-2133.07,0.000295,2]
[387792593,1758874239521,-158.518827,0.0002983,2]
[387792594,1758874239530,-2402.3,0.0003079,3]
[387792595,1758874239540,-1201.14,0.0003079,3]
[387792596,1758874239549,-600.58,0.0003079,3]
[387792597,1758874239558,-300.28,0.0003079,3]
[387792598,1758874239568,-221.68720546,0.0003084,2]
[387792599,1758874239577,-158.518827,0.00031636,2]
[387792600,1758874239587,-491.87759714,0.00032,120]
[387792601,1758874239596,-778.82476366,0.00032,120]
[387792602,1758874239606,-247.04,0.00032,120]
[387792603,1758874239616,-747.30242768,0.00032,120]
[387792604,1758874239625,-174.64797888,0.00032,120]
[387792605,1758874239635,-255.26400189,0.00032,120]
[387792606,1758874239644,-491.87759714,0.000323,120]
[387792607,1758874239654,-778.82476366,0.000323,120]
[387792608,1758874239663,-247.04,0.000323,120]
[387792609,1758874239682,-747.30242768,0.000323,120]
[387792610,1758874239692,-174.64797888,0.000323,120]
[387792611,1758874239701,-221.68720546,0.0003234,2]
[387792612,1758874239711,-533.92694342,0.0003234,2]
[387792613,1758874239720,-491.87759714,0.000326,120]
[387792614,1758874239730,-778.82476366,0.000326,120]
[387792615,1758874239745,-247.04,0.000326,120]
[387792616,1758874239754,-747.30242768,0.000326,120]
[387792617,1758874239764,-174.64797888,0.000326,120]
[387792618,1758874239774,-179.69451932,0.00032758,9]
[387792619,1758874239790,-711.34,0.00032876,120]
[387792620,1758874239800,-1500.0,0.00032877,2]
[387792621,1758874239809,-224.50843201,0.00032877,2]
[387792622,1758874239818,-500.0,0.00032877,7]
[387792623,1758874239827,-500.0,0.00032877,7]
[387792624,1758874239837,-500.0,0.00032877,7]
[387792625,1758874239846,-500.0,0.00032877,7]
[387792626,1758874239855,-500.0,0.00032877,7]
[387792627,1758874239864,-500.0,0.00032877,7]
[387792628,1758874239874,-500.0,0.00032877,7]
[387792629,1758874239883,-500.0,0.00032877,7]
[387792630,1758874239893,-279.82549718,0.00032877,7]
[387792631,1758874239901,-500.0,0.00032877,7]
[387792632,1758874239911,-500.0,0.00032877,7]
[387792633,1758874239921,-500.0,0.00032877,7]
[387792634,1758874239930,-491.87759714,0.00033,120]
[387792635,1758874239940,-778.82476366,0.00033,120]
[387792636,1758874239949,-247.04,0.00033,120]
[387792637,1758874239959,-747.30242768,0.00033,120]
[387792638,1758874239968,-174.64797888,0.00033,120]
[387792639,1758874239978,-160.0,0.00033043,2]
[387792640,1758874239988,-207.07799245,0.000332,117]
[387792641,1758874239997,-207.07799241,0.000332,117]
[387792642,1758874240008,-491.87759714,0.000333,120]
[387792643,1758874240017,-778.82476366,0.000333,120]
[387792644,1758874240027,-247.04,0.000333,120]
[387792645,1758874240036,-747.30242768,0.000333,120]
[387792646,1758874240045,-158.518827,0.00033441,2]
[387792647,1758874240055,-260.0,0.00033591,2]
[387792648,1758874240064,-503.17496598,0.00033604,5]
[387792649,1758874240073,-500.0,0.00033604,5]
[387792650,1758874240083,-711.34,0.00033698,120]
[387792651,1758874240092,-221.68720546,0.0003384,2]
[387792652,1758874240101,-158.518827,0.00033906,20]
[387792653,1758874240111,-360.0,0.00034139,2]
[387792654,1758874240121,-158.518827,0.00034452,14]
[387792655,1758874240131,-711.34,0.0003452,120]
[387792656,1758874240141,-460.0,0.00034687,2]
[387792657,1758874240150,-180.057,0.00035,5]
[387792658,1758874240159,-180.057,0.00035,5]
[387792659,1758874240169,-201.81582116,0.00035,2]
[387792660,1758874240178,-555.30916772,0.00035235,2]
[387792661,1758874240188,-6640.51900779,0.0003534,2]
[387792662,1758874240197,-221.68720546,0.0003534,2]
[387792663,1758874240207,-533.92694342,0.0003534,2]
[387792664,1758874240216,-711.34,0.00035342,120]
[387792665,1758874240225,-201.63641264,0.0003544,2]
[387792666,1758874240235,-497439.25010192,0.0003544,7]
[387792691,1758874245202,-158.518827,0.00024576,8]
[387792692,1758874245212,-158.518827,0.00024602,8]
[387792693,1758874245223,-303.68695202,0.00025203,2]
[387792694,1758874245235,-196.31304798,0.00025203,2]
[387792695,1758874245245,-500.0,0.00025203,2]
[387792696,1758874245255,-500.0,0.00025203,2]
[387792697,1758874245265,-297.24596148,0.00025203,2]
[387792705,1758874246766,-202.75403852,0.00025203,2]
[387792706,1758874246776,-500.0,0.00025203,2]
[387792707,1758874246786,-500.0,0.00025203,2]
[387792708,1758874246795,-500.0,0.00025203,2]
[387792709,1758874246805,-500.0,0.00025203,2]
[387792710,1758874246814,-500.0,0.00025203,2]
[387792711,1758874246823,-500.0,0.00025203,2]
[387792712,1758874246833,-500.0,0.00025203,2]
[387792713,1758874246842,-500.0,0.00025203,2]
[387792714,1758874246851,-500.0,0.00025203,2]
[387792715,1758874246860,-200.0,0.00025203,2]
[387792716,1758874246870,-500.0,0.00025203,2]
[387792717,1758874246879,-158.518827,0.00033113,2]
[387792718,1758874246889,-158.518827,0.00035411,2]
[387792719,1758874246899,-191.62,0.0003543,10]
[387792720,1758874246908,-5574.82883247,0.0003544,7]
[387792721,1758874247344,-484.38,0.0003544,7]
[387792741,1758874377944,155.0,0.00028767,120]
[387792743,1758874465413,-158.518827,0.00024602,8]
[387792745,1758874543068,13404.0,0.00030213,20]
[387792761,1758874845503,158.518827,0.00024999,8]
[387792762,1758874846045,158.518827,0.00024925,8]
[387792763,1758874872467,3585.72953854,0.00025205,2]
[387792764,1758874896899,1414.27046146,0.00025205,2]
[387792792,1758875159763,-161.0,0.00025782,2]
[387792793,1758875162853,-161.0,0.00025782,2]
[387792794,1758875177878,161.0,8.3e-07,2]
[387792799,1758875179070,161.0,8.3e-07,2]
[387792804,1758875208269,166.03865211,0.00025,10]
[387792810,1758875309553,155.0,0.00018,30]
[387792812,1758875320129,-161.0,0.00025413,2]
[387792813,1758875320418,300.0,0.00025,30]
[387792815,1758875322424,-23.996614,0.00025413,2]
[387792816,1758875323649,1025.33571371,0.00024,30]
[387792817,1758875348113,3031.63563418,0.00025205,2]
[387792818,1758875348135,1968.36436582,0.00025205,2]
[387792821,1758875378140,5000.0,0.00025205,2]
[387792822,1758875410483,3031.64563418,0.00025205,2]
[387792823,1758875410505,1968.35436582,0.00025205,2]
[387792824,1758875418705,5000.0,0.00025205,2]
[387792831,1758875431972,-177.1950767,0.00025754,2]
[387792832,1758875431982,-83.39889197,0.00025782,2]
[387792889,1758875437833,-260.60110803,0.00025782,2]
[387792890,1758875437843,-298.6730521,0.00025846,2]
[387792891,1758875437852,-1714.29462013,0.00026,30]
[387792892,1758875437888,-2426.34185289,0.00026,30]
[387792893,1758875437897,-229.004745,0.00026005,2]
[387792894,1758875437906,-1903.0906792,0.00026437,2]
[387792895,1758875437916,-326.0046196,0.00026742,2]
[387792897,1758875437925,-165.0,0.00026839,2]
[387792899,1758875437935,-300.0,0.00026839,2]
[387792900,1758875437944,-300.0,0.00026839,2]
[387792901,1758875437953,-300.0,0.00026839,2]
[387792902,1758875437962,-500.0,0.00026839,2]
[387792903,1758875437972,-500.0,0.00026839,2]
[387792904,1758875437981,-500.0,0.00026839,2]
[387792905,1758875437990,-500.0,0.00026839,2]
[387792906,1758875437999,-500.0,0.00026839,2]
[387792907,1758875438008,-500.0,0.00026839,2]
[387792908,1758875438017,-155.77269503,0.00026839,2]
[387792909,1758875438028,-500.0,0.00026839,2]
[387792910,1758875438040,-500.0,0.00026839,2]
[387792911,1758875438049,-364.79638823,0.00026839,2]
[387792912,1758875438058,-500.0,0.00026839,2]
[387792913,1758875438067,-500.0,0.00026839,2]
[387792914,1758875438078,-500.0,0.00026839,2]
[387792915,1758875438087,-500.0,0.00026839,2]
[387792916,1758875438097,-553.04993015,0.00026839,2]
[387792917,1758875438108,-500.0,0.00026839,2]
[387792918,1758875438117,-500.0,0.00026839,2]
[387792919,1758875438126,-500.0,0.00026839,2]
[387792920,1758875438135,-182.67277301,0.00026839,2]
[387792921,1758875438144,-500.0,0.00026839,2]
[387792922,1758875438153,-500.0,0.00026839,2]
[387792923,1758875438162,-500.0,0.00026839,2]
[387792924,1758875438171,-500.0,0.00026839,2]
[387792925,1758875438180,-500.0,0.00026839,2]
[387792926,1758875438190,-380.0,0.00026839,2]
[387792927,1758875438199,-500.0,0.00026839,2]
[387792928,1758875438208,-500.0,0.00026839,2]
[387792929,1758875438217,-500.0,0.00026839,2]
[387792930,1758875438226,-500.0,0.00026839,2]
[387792931,1758875438235,-500.0,0.00026839,2]
[387792932,1758875438244,-500.0,0.00026839,2]
[387792933,1758875438253,-500.0,0.00026839,2]
[387792934,1758875438263,-500.0,0.00026839,2]
[387792935,1758875438272,-500.0,0.00026839,2]
[387792936,1758875438282,-500.0,0.00026839,2]
[387792937,1758875438292,-500.0,0.0002684,2]
[387792938,1758875438301,-500.0,0.0002684,2]
[387792939,1758875438310,-442.70957691,0.0002684,2]
[387792940,1758875438320,-500.0,0.0002684,2]
[387792941,1758875438329,-500.0,0.0002684,2]
[387792942,1758875438339,-500.0,0.00026841,2]
[387792943,1758875438348,-165.765,0.00026844,14]
[387792944,1758875438357,-500.0,0.000269,2]
[387792945,1758875438366,-500.0,0.0002734,2]
[387792946,1758875438375,-500.0,0.0002734,2]